[Event "*** Titled Tuesday Blitz AM"]
[Site "Chess.com"]
[Date "2020.01.07"]
[Round "2"]
[White "enkhtuul"]
[Black "Alex_Molchanov"]
[Result "0-1"]
[WhiteElo "2342"]
[BlackElo "2603"]
[TimeControl "180+2"]
[EndTime "9:23:39 PST"]
[Termination "Alex_Molchanov won by checkmate"]

1. d4 {[%clk 0:03:01.8]} 1... d5 {[%clk 0:02:59.5]} 2. Nf3 {[%clk 0:03:02.3]}
2... Nf6 {[%clk 0:02:59.5]} 3. g3 {[%clk 0:03:03.3]} 3... e6 {[%clk 0:02:54]} 4.
Bg2 {[%clk 0:03:05.2]} 4... c5 {[%clk 0:02:50.2]} 5. O-O {[%clk 0:03:06.2]} 5...
cxd4 {[%clk 0:02:51.6]} 6. Nxd4 {[%clk 0:03:07.2]} 6... e5 {[%clk 0:02:52.4]} 7.
Nb3 {[%clk 0:03:08.1]} 7... Be6 {[%clk 0:02:53.5]} 8. Nc3 {[%clk 0:03:05.5]}
8... Be7 {[%clk 0:02:46.5]} 9. Bg5 {[%clk 0:03:05.9]} 9... Nbd7 {[%clk 0:02:47]}
10. e4 {[%clk 0:02:09.5]} 10... d4 {[%clk 0:02:28.7]} 11. Nd5 {[%clk 0:02:10]}
11... h6 {[%clk 0:02:10.1]} 12. Bxf6 {[%clk 0:02:07.6]} 12... Nxf6 {[%clk
0:02:09.5]} 13. c4 {[%clk 0:02:02.1]} 13... dxc3 {[%clk 0:02:06.4]} 14. bxc3
{[%clk 0:01:54.2]} 14... O-O {[%clk 0:02:03.7]} 15. c4 {[%clk 0:01:50.6]} 15...
Nd7 {[%clk 0:01:32.2]} 16. f4 {[%clk 0:01:40]} 16... f6 {[%clk 0:01:15.4]} 17.
f5 {[%clk 0:01:40.2]} 17... Bf7 {[%clk 0:01:14.4]} 18. Qe2 {[%clk 0:01:35.5]}
18... Rc8 {[%clk 0:01:04.8]} 19. Rfd1 {[%clk 0:01:34]} 19... Qe8 {[%clk
0:01:06.1]} 20. Rac1 {[%clk 0:01:26.5]} 20... Bc5+ {[%clk 0:01:06.4]} 21. Kh1
{[%clk 0:01:24.6]} 21... b6 {[%clk 0:00:57.2]} 22. Bf3 {[%clk 0:01:24.8]} 22...
Nb8 {[%clk 0:00:55.2]} 23. g4 {[%clk 0:01:13.3]} 23... Nc6 {[%clk 0:00:53]} 24.
h4 {[%clk 0:01:05.2]} 24... Nd4 {[%clk 0:00:43]} 25. Nxd4 {[%clk 0:01:06.2]}
25... exd4 {[%clk 0:00:44.9]} 26. Qd3 {[%clk 0:01:03.6]} 26... Qe5 {[%clk
0:00:45]} 27. Rg1 {[%clk 0:01:03]} 27... Bd6 {[%clk 0:00:42.6]} 28. Rg2 {[%clk
0:01:03.5]} 28... Bxd5 {[%clk 0:00:38.5]} 29. exd5 {[%clk 0:01:01.3]} 29... Rfe8
{[%clk 0:00:37.7]} 30. Rd1 {[%clk 0:00:49.8]} 30... Qf4 {[%clk 0:00:26.6]} 31.
Rf1 {[%clk 0:00:37.2]} 31... Re3 {[%clk 0:00:24.2]} 32. Qd1 {[%clk 0:00:38.2]}
32... Rxc4 {[%clk 0:00:22.3]} 33. Rff2 {[%clk 0:00:20.1]} 33... Rcc3 {[%clk
0:00:16.6]} 34. Be2 {[%clk 0:00:17.9]} 34... Rh3+ {[%clk 0:00:14.5]} 35. Kg1
{[%clk 0:00:18.6]} 35... Qe3 {[%clk 0:00:16.1]} 36. Bf1 {[%clk 0:00:16]} 36...
Bg3 {[%clk 0:00:12.4]} 37. Qa4 {[%clk 0:00:15.5]} 37... Bxf2+ {[%clk 0:00:12.5]}
38. Rxf2 {[%clk 0:00:16.9]} 38... Rg3+ {[%clk 0:00:13.9]} 39. Bg2 {[%clk
0:00:16.4]} 39... Rc1+ {[%clk 0:00:09.9]} 40. Kh2 {[%clk 0:00:17.7]} 40... Rxg4
{[%clk 0:00:11.3]} 41. Rf3 {[%clk 0:00:15.1]} 41... Qg1+ {[%clk 0:00:11.5]} 42.
Kh3 {[%clk 0:00:16]} 42... Qxg2# {[%clk 0:00:13.4]} 0-1

[Event "*** Titled Tuesday Blitz AM"]
[Site "Chess.com"]
[Date "2020.01.07"]
[Round "2"]
[White "Boundless_Strike"]
[Black "Zarikovs1999"]
[Result "1-0"]
[WhiteElo "2724"]
[BlackElo "2348"]
[TimeControl "180+2"]
[EndTime "9:23:45 PST"]
[Termination "Boundless_Strike won by resignation"]

1. e4 {[%clk 0:03:01.8]} 1... c5 {[%clk 0:02:52.8]} 2. Nf3 {[%clk 0:03:02.3]}
2... d6 {[%clk 0:02:51.3]} 3. d4 {[%clk 0:03:04.2]} 3... cxd4 {[%clk 0:02:53.2]}
4. Nxd4 {[%clk 0:02:59.4]} 4... Nf6 {[%clk 0:02:54.1]} 5. Nc3 {[%clk 0:02:57]}
5... a6 {[%clk 0:02:54.8]} 6. Bg5 {[%clk 0:02:57.5]} 6... Nbd7 {[%clk
0:02:50.5]} 7. Bc4 {[%clk 0:02:48]} 7... e6 {[%clk 0:02:50.1]} 8. Qe2 {[%clk
0:02:42.1]} 8... Qc7 {[%clk 0:02:45.6]} 9. Bb3 {[%clk 0:02:32.9]} 9... Nc5
{[%clk 0:02:36.2]} 10. O-O-O {[%clk 0:02:26.8]} 10... Be7 {[%clk 0:02:30.4]} 11.
f4 {[%clk 0:02:27]} 11... Nxb3+ {[%clk 0:02:22.9]} 12. axb3 {[%clk 0:02:20.5]}
12... b5 {[%clk 0:02:11.4]} 13. e5 {[%clk 0:02:11.9]} 13... dxe5 {[%clk
0:02:03.9]} 14. fxe5 {[%clk 0:02:12.9]} 14... Nd5 {[%clk 0:01:55.4]} 15. Bxe7
{[%clk 0:02:06.4]} 15... Nxc3 {[%clk 0:01:23.5]} 16. bxc3 {[%clk 0:01:57.5]}
16... Qxe7 {[%clk 0:01:13.6]} 17. Nc6 {[%clk 0:01:50.9]} 17... Qa3+ {[%clk
0:01:07.2]} 18. Kb1 {[%clk 0:01:49]} 18... O-O {[%clk 0:01:06.3]} 19. Nd8 {[%clk
0:01:00.8]} 19... Qe7 {[%clk 0:00:47.3]} 20. Qd2 {[%clk 0:00:51.8]} 20... a5
{[%clk 0:00:39.9]} 21. Qd6 {[%clk 0:00:44.1]} 21... Qg5 {[%clk 0:00:16.1]} 22.
h4 {[%clk 0:00:29.9]} 22... Qg3 {[%clk 0:00:13]} 23. Qc6 {[%clk 0:00:25.5]}
23... Rb8 {[%clk 0:00:11.6]} 24. Qc7 {[%clk 0:00:14.8]} 24... Ra8 {[%clk
0:00:12.5]} 25. Nc6 {[%clk 0:00:09.8]} 25... Kh8 {[%clk 0:00:08.9]} 26. Nd8
{[%clk 0:00:05.8]} 26... Ba6 {[%clk 0:00:08.2]} 27. Nxf7+ {[%clk 0:00:05.7]}
27... Kg8 {[%clk 0:00:09.6]} 28. Nd6 {[%clk 0:00:07.2]} 28... Qe3 {[%clk
0:00:05.3]} 29. h5 {[%clk 0:00:05.9]} 29... Ra7 {[%clk 0:00:06.5]} 30. Qc6
{[%clk 0:00:07.1]} 30... Raa8 {[%clk 0:00:03.8]} 31. h6 {[%clk 0:00:08.5]} 31...
g6 {[%clk 0:00:04.7]} 32. Ne4 {[%clk 0:00:09.6]} 32... Qa7 {[%clk 0:00:04.9]}
33. Qxe6+ {[%clk 0:00:10.2]} 33... Kh8 {[%clk 0:00:06.4]} 34. Nf6 {[%clk
0:00:11.1]} 34... Rf7 {[%clk 0:00:04.9]} 35. Rd4 {[%clk 0:00:08.9]} 35... b4
{[%clk 0:00:04.1]} 36. Rhd1 {[%clk 0:00:10.3]} 36... Raf8 {[%clk 0:00:04.1]} 37.
Rd8 {[%clk 0:00:11.3]} 37... Qc7 {[%clk 0:00:04.4]} 38. Rxf8+ {[%clk 0:00:12.4]}
38... Rxf8 {[%clk 0:00:06.3]} 39. Rd7 {[%clk 0:00:13.1]} 1-0

[Event "*** Titled Tuesday Blitz AM"]
[Site "Chess.com"]
[Date "2020.01.07"]
[Round "2"]
[White "SantoBlue"]
[Black "Ba_clbaf_osed_ingo_3v21"]
[Result "0-1"]
[WhiteElo "2767"]
[BlackElo "2552"]
[TimeControl "180+2"]
[EndTime "9:23:51 PST"]
[Termination "Ba_clbaf_osed_ingo_3v21 won by resignation"]

1. e4 {[%clk 0:03:01.9]} 1... c5 {[%clk 0:03:00.6]} 2. Nf3 {[%clk 0:02:39.7]}
2... d6 {[%clk 0:03:01.4]} 3. d4 {[%clk 0:02:39.8]} 3... cxd4 {[%clk 0:03:02.2]}
4. Nxd4 {[%clk 0:02:35.5]} 4... Nf6 {[%clk 0:03:03.5]} 5. Nc3 {[%clk 0:02:35.7]}
5... a6 {[%clk 0:03:04.8]} 6. Bg5 {[%clk 0:02:36.5]} 6... e6 {[%clk 0:03:05.8]}
7. f4 {[%clk 0:02:36.9]} 7... h6 {[%clk 0:03:07.2]} 8. Bh4 {[%clk 0:02:38]} 8...
Qb6 {[%clk 0:03:08.4]} 9. a3 {[%clk 0:02:29]} 9... Be7 {[%clk 0:03:08.9]} 10.
Bf2 {[%clk 0:02:29.3]} 10... Qc7 {[%clk 0:03:10.1]} 11. Bd3 {[%clk 0:02:28.4]}
11... b5 {[%clk 0:03:06.1]} 12. O-O {[%clk 0:02:29.3]} 12... Bb7 {[%clk
0:03:06.1]} 13. Qe2 {[%clk 0:02:30.3]} 13... Nbd7 {[%clk 0:03:07.2]} 14. Rae1
{[%clk 0:02:30.8]} 14... O-O {[%clk 0:03:03.4]} 15. e5 {[%clk 0:02:25.3]} 15...
Nd5 {[%clk 0:03:02]} 16. exd6 {[%clk 0:02:23.7]} 16... Bxd6 {[%clk 0:03:00]} 17.
Nxd5 {[%clk 0:01:56.2]} 17... Bxd5 {[%clk 0:03:00]} 18. Be3 {[%clk 0:01:29.6]}
18... Nc5 {[%clk 0:02:58.9]} 19. Qg4 {[%clk 0:01:24.8]} 19... Nxd3 {[%clk
0:02:48.2]} 20. cxd3 {[%clk 0:01:25.8]} 20... f5 {[%clk 0:02:17.4]} 21. Qe2
{[%clk 0:01:14]} 21... Rf6 {[%clk 0:02:09.7]} 22. Rc1 {[%clk 0:01:12.5]} 22...
Qb7 {[%clk 0:02:10.5]} 23. Nf3 {[%clk 0:01:06.7]} 23... Rff8 {[%clk 0:02:08.1]}
24. Bc5 {[%clk 0:00:56.8]} 24... Bxc5+ {[%clk 0:01:40.7]} 25. Rxc5 {[%clk
0:00:57.4]} 25... Rfc8 {[%clk 0:01:41.6]} 26. Rxc8+ {[%clk 0:00:48.4]} 26...
Rxc8 {[%clk 0:01:42.2]} 27. h3 {[%clk 0:00:48.1]} 27... Bxf3 {[%clk 0:01:38.2]}
28. Rxf3 {[%clk 0:00:47.1]} 28... Qd5 {[%clk 0:01:39]} 29. Kh2 {[%clk
0:00:47.7]} 29... Kf7 {[%clk 0:01:30.5]} 30. Rg3 {[%clk 0:00:48.8]} 30... g6
{[%clk 0:01:28.8]} 31. Qf2 {[%clk 0:00:43.9]} 31... Qd7 {[%clk 0:01:17.5]} 32.
Re3 {[%clk 0:00:28.2]} 32... Qa7 {[%clk 0:01:05.8]} 33. Qe2 {[%clk 0:00:26.7]}
33... Rc6 {[%clk 0:01:04]} 34. Qf3 {[%clk 0:00:26.2]} 34... Qc7 {[%clk
0:00:57.6]} 35. Re5 {[%clk 0:00:24.6]} 35... Rc5 {[%clk 0:00:55.8]} 36. Qe3
{[%clk 0:00:19.2]} 36... Rxe5 {[%clk 0:00:44.7]} 37. fxe5 {[%clk 0:00:19]} 37...
g5 {[%clk 0:00:45.9]} 38. d4 {[%clk 0:00:20]} 38... Qc4 {[%clk 0:00:42.9]} 39.
h4 {[%clk 0:00:17.5]} 39... Kg6 {[%clk 0:00:43.1]} 40. hxg5 {[%clk 0:00:18.5]}
40... hxg5 {[%clk 0:00:45]} 41. Kg1 {[%clk 0:00:19.4]} 41... a5 {[%clk
0:00:41.8]} 42. Qd2 {[%clk 0:00:20.4]} 42... b4 {[%clk 0:00:42]} 43. axb4 {[%clk
0:00:22]} 43... axb4 {[%clk 0:00:43.6]} 44. Kf2 {[%clk 0:00:23.7]} 44... b3
{[%clk 0:00:42.2]} 45. Ke3 {[%clk 0:00:25.2]} 45... f4+ {[%clk 0:00:38.3]} 46.
Ke4 {[%clk 0:00:21.1]} 46... Qc2+ {[%clk 0:00:38.9]} 47. Qd3 {[%clk 0:00:20.3]}
47... g4 {[%clk 0:00:31.8]} 48. g3 {[%clk 0:00:18.1]} 48... fxg3 {[%clk
0:00:25.1]} 0-1

[Event "*** Titled Tuesday Blitz AM"]
[Site "Chess.com"]
[Date "2020.01.07"]
[Round "2"]
[White "goldenspine"]
[Black "Arystanner"]
[Result "0-1"]
[WhiteElo "2333"]
[BlackElo "2718"]
[TimeControl "180+2"]
[EndTime "9:24:01 PST"]
[Termination "Arystanner won by resignation"]

1. d4 {[%clk 0:03:01.9]} 1... Nf6 {[%clk 0:03:00.4]} 2. Nf3 {[%clk 0:03:02.3]}
2... d5 {[%clk 0:03:01.2]} 3. g3 {[%clk 0:03:02.6]} 3... e6 {[%clk 0:03:02.2]}
4. Bg2 {[%clk 0:03:03.7]} 4... c5 {[%clk 0:03:03.8]} 5. c4 {[%clk 0:03:04.3]}
5... cxd4 {[%clk 0:03:03.9]} 6. cxd5 {[%clk 0:03:02]} 6... exd5 {[%clk
0:03:04.6]} 7. O-O {[%clk 0:02:59.4]} 7... Nc6 {[%clk 0:03:05.4]} 8. Nxd4 {[%clk
0:03:00.3]} 8... Bc5 {[%clk 0:03:06.6]} 9. Nxc6 {[%clk 0:02:43.3]} 9... bxc6
{[%clk 0:03:03.9]} 10. Bf4 {[%clk 0:02:33.3]} 10... O-O {[%clk 0:02:59.9]} 11.
Nd2 {[%clk 0:02:33.7]} 11... Bb6 {[%clk 0:02:59.5]} 12. Rc1 {[%clk 0:02:31.6]}
12... c5 {[%clk 0:02:59.3]} 13. Nc4 {[%clk 0:02:27.6]} 13... Be6 {[%clk
0:03:00.5]} 14. Ne5 {[%clk 0:01:42.6]} 14... Rc8 {[%clk 0:02:49]} 15. Qa4 {[%clk
0:01:40.3]} 15... Qe8 {[%clk 0:02:44.1]} 16. Qxe8 {[%clk 0:01:39.7]} 16... Rfxe8
{[%clk 0:02:45.1]} 17. Rfd1 {[%clk 0:01:39.9]} 17... h6 {[%clk 0:02:41.1]} 18.
Nd3 {[%clk 0:01:40.3]} 18... d4 {[%clk 0:02:38.5]} 19. b3 {[%clk 0:01:38.8]}
19... c4 {[%clk 0:02:39.5]} 20. bxc4 {[%clk 0:01:33.6]} 20... Rxc4 {[%clk
0:02:40.8]} 21. a3 {[%clk 0:01:03.4]} 21... Rxc1 {[%clk 0:02:25.3]} 22. Rxc1
{[%clk 0:01:04.2]} 22... Bg4 {[%clk 0:02:26.2]} 23. Bf3 {[%clk 0:01:00]} 23...
Bxf3 {[%clk 0:02:22.1]} 24. exf3 {[%clk 0:01:01.9]} 24... Nd5 {[%clk 0:02:21.1]}
25. Bd6 {[%clk 0:00:55.6]} 25... Re2 {[%clk 0:02:00]} 26. Kf1 {[%clk 0:00:51.7]}
26... Rd2 {[%clk 0:01:58.1]} 27. Nf4 {[%clk 0:00:25.6]} 27... Nxf4 {[%clk
0:01:57.3]} 28. Bxf4 {[%clk 0:00:27.5]} 28... Ra2 {[%clk 0:01:58.3]} 29. Bd6
{[%clk 0:00:28.4]} 29... d3 {[%clk 0:01:57.8]} 30. Rd1 {[%clk 0:00:17.8]} 30...
Rxf2+ {[%clk 0:01:55.6]} 31. Ke1 {[%clk 0:00:19.1]} 31... Rxf3 {[%clk 0:01:57]}
32. Kd2 {[%clk 0:00:19.1]} 32... Rf2+ {[%clk 0:01:44.2]} 33. Kxd3 {[%clk
0:00:20.4]} 33... Rxh2 {[%clk 0:01:45]} 34. Kc4 {[%clk 0:00:21]} 34... g5 {[%clk
0:01:43.5]} 35. Be5 {[%clk 0:00:20.8]} 35... h5 {[%clk 0:01:39.2]} 36. Rd7
{[%clk 0:00:15.8]} 36... Re2 {[%clk 0:01:35.1]} 37. Bf6 {[%clk 0:00:16.4]} 37...
Re3 {[%clk 0:01:21.5]} 38. Bxg5 {[%clk 0:00:10.5]} 38... Rxg3 {[%clk 0:01:21]}
39. Rd5 {[%clk 0:00:11.8]} 39... h4 {[%clk 0:01:19.3]} 40. Kb5 {[%clk
0:00:10.7]} 40... h3 {[%clk 0:01:19.6]} 41. Bf6 {[%clk 0:00:12]} 41... Rg6
{[%clk 0:01:15.5]} 42. Bc3 {[%clk 0:00:12]} 42... f6 {[%clk 0:01:02.6]} 43. Rh5
{[%clk 0:00:12.6]} 43... Rg5+ {[%clk 0:01:03.8]} 44. Rxg5+ {[%clk 0:00:11.8]}
44... fxg5 {[%clk 0:01:05.7]} 45. Be5 {[%clk 0:00:13.2]} 45... Bg1 {[%clk
0:01:04.2]} 46. Ka6 {[%clk 0:00:13.9]} 46... g4 {[%clk 0:01:05.5]} 47. a4 {[%clk
0:00:13.7]} 47... h2 {[%clk 0:01:06]} 48. Bxh2 {[%clk 0:00:14.1]} 48... Bxh2
{[%clk 0:01:07.2]} 49. Kxa7 {[%clk 0:00:16]} 49... g3 {[%clk 0:01:08.7]} 50. a5
{[%clk 0:00:16.9]} 50... g2 {[%clk 0:01:10.3]} 51. Kb7 {[%clk 0:00:18.5]} 51...
g1=Q {[%clk 0:01:11.8]} 52. a6 {[%clk 0:00:20]} 52... Qb1+ {[%clk 0:01:11.4]}
53. Kc8 {[%clk 0:00:20.5]} 53... Bg1 {[%clk 0:01:11.9]} 54. Kd7 {[%clk
0:00:19.2]} 54... Ba7 {[%clk 0:01:12.7]} 55. Kc7 {[%clk 0:00:20.3]} 55... Qb6+
{[%clk 0:01:13.9]} 56. Kc8 {[%clk 0:00:21.5]} 56... Qxa6+ {[%clk 0:01:15]} 57.
Kd8 {[%clk 0:00:22.9]} 57... Qb7 {[%clk 0:01:15.4]} 58. Ke8 {[%clk 0:00:23.8]}
58... Bc5 {[%clk 0:01:15.7]} 0-1

[Event "*** Titled Tuesday Blitz AM"]
[Site "Chess.com"]
[Date "2020.01.07"]
[Round "2"]
[White "gmcorrales"]
[Black "olksuna"]
[Result "1-0"]
[WhiteElo "2863"]
[BlackElo "2581"]
[TimeControl "180+2"]
[EndTime "9:24:04 PST"]
[Termination "gmcorrales won by resignation"]

1. e4 {[%clk 0:03:01.9]} 1... c5 {[%clk 0:03:00.4]} 2. Nf3 {[%clk 0:03:01.8]}
2... Nc6 {[%clk 0:03:01.9]} 3. d4 {[%clk 0:03:01.8]} 3... cxd4 {[%clk
0:03:02.9]} 4. Nxd4 {[%clk 0:03:03.7]} 4... Nf6 {[%clk 0:03:04.2]} 5. Nc3 {[%clk
0:03:03.6]} 5... e5 {[%clk 0:03:03]} 6. Ndb5 {[%clk 0:03:04]} 6... d6 {[%clk
0:03:04.5]} 7. Bg5 {[%clk 0:03:03.1]} 7... a6 {[%clk 0:03:06]} 8. Na3 {[%clk
0:02:59.4]} 8... b5 {[%clk 0:03:07.3]} 9. Bxf6 {[%clk 0:02:55.7]} 9... gxf6
{[%clk 0:03:07.8]} 10. Nd5 {[%clk 0:02:56.4]} 10... Bg7 {[%clk 0:02:54]} 11. Bd3
{[%clk 0:02:45.7]} 11... Ne7 {[%clk 0:02:48.8]} 12. Nxe7 {[%clk 0:02:45.5]}
12... Qxe7 {[%clk 0:02:50.7]} 13. c3 {[%clk 0:02:46]} 13... f5 {[%clk
0:02:37.9]} 14. Nc2 {[%clk 0:02:44.6]} 14... d5 {[%clk 0:02:35.6]} 15. exf5
{[%clk 0:02:33.8]} 15... e4 {[%clk 0:02:34.3]} 16. Be2 {[%clk 0:02:34.2]} 16...
O-O {[%clk 0:02:09.1]} 17. O-O {[%clk 0:02:28.3]} 17... Bxf5 {[%clk 0:02:08.1]}
18. Qxd5 {[%clk 0:02:26.7]} 18... Bg6 {[%clk 0:02:08.5]} 19. Rad1 {[%clk
0:02:23.8]} 19... Kh8 {[%clk 0:01:58.1]} 20. Qd6 {[%clk 0:01:55]} 20... Qg5
{[%clk 0:01:49.3]} 21. Qg3 {[%clk 0:01:45.6]} 21... Qc5 {[%clk 0:01:45.8]} 22.
Ne3 {[%clk 0:01:44.2]} 22... Rad8 {[%clk 0:01:43.8]} 23. Rxd8 {[%clk 0:01:43]}
23... Rxd8 {[%clk 0:01:45.7]} 24. Rd1 {[%clk 0:01:43.9]} 24... Rxd1+ {[%clk
0:01:44.3]} 25. Nxd1 {[%clk 0:01:45.8]} 25... h5 {[%clk 0:01:36.2]} 26. h4
{[%clk 0:01:22.6]} 26... Qd5 {[%clk 0:01:27.5]} 27. a3 {[%clk 0:01:22.4]} 27...
Qd2 {[%clk 0:01:28.6]} 28. Qe3 {[%clk 0:01:22]} 28... Qc2 {[%clk 0:01:24]} 29.
g3 {[%clk 0:01:20.1]} 29... Kh7 {[%clk 0:01:16.5]} 30. Kf1 {[%clk 0:01:17]}
30... Bh6 {[%clk 0:00:50.3]} 31. Qc5 {[%clk 0:01:16.8]} 31... e3 {[%clk
0:00:47.2]} 32. Nxe3 {[%clk 0:01:11.8]} 32... Qxb2 {[%clk 0:00:46.7]} 33. Bxh5
{[%clk 0:01:10.2]} 33... Bxe3 {[%clk 0:00:42.9]} 34. Bxg6+ {[%clk 0:01:10.8]}
34... fxg6 {[%clk 0:00:43.4]} 35. fxe3 {[%clk 0:01:11]} 35... Qc1+ {[%clk
0:00:42.4]} 36. Kf2 {[%clk 0:01:12]} 36... Qd2+ {[%clk 0:00:41.5]} 37. Kf3
{[%clk 0:01:11.9]} 37... Qd1+ {[%clk 0:00:42.6]} 38. Kf4 {[%clk 0:01:11.3]}
38... Qf1+ {[%clk 0:00:42.2]} 39. Kg5 {[%clk 0:01:10.9]} 39... Qf7 {[%clk
0:00:41.9]} 40. g4 {[%clk 0:01:07.5]} 40... a5 {[%clk 0:00:35.7]} 41. h5 {[%clk
0:01:04.6]} 41... b4 {[%clk 0:00:35.4]} 42. cxb4 {[%clk 0:01:04.1]} 42... axb4
{[%clk 0:00:37.3]} 43. axb4 {[%clk 0:01:05.9]} 43... Qg7 {[%clk 0:00:29.9]} 44.
hxg6+ {[%clk 0:01:04.5]} 44... Qxg6+ {[%clk 0:00:31.8]} 45. Kf4 {[%clk
0:01:05.4]} 45... Qh6+ {[%clk 0:00:32.9]} 46. g5 {[%clk 0:01:06.1]} 46... Qh4+
{[%clk 0:00:32]} 47. Kf5 {[%clk 0:01:06.4]} 47... Qf2+ {[%clk 0:00:31.9]} 48.
Ke6 {[%clk 0:01:07.1]} 48... Qa2+ {[%clk 0:00:31.5]} 49. Ke7 {[%clk 0:01:06.1]}
49... Kg8 {[%clk 0:00:25.6]} 50. Kd6 {[%clk 0:01:05.1]} 50... Qa6+ {[%clk
0:00:16.1]} 51. Qc6 {[%clk 0:01:05.1]} 51... Qa3 {[%clk 0:00:17.5]} 52. Qd5+
{[%clk 0:01:05.3]} 52... Kg7 {[%clk 0:00:18.5]} 53. Qe5+ {[%clk 0:01:06.1]}
53... Kg8 {[%clk 0:00:19.5]} 54. Qd5+ {[%clk 0:01:00.9]} 54... Kg7 {[%clk
0:00:20.6]} 55. Qb7+ {[%clk 0:00:59.5]} 55... Kg6 {[%clk 0:00:20.4]} 56. e4
{[%clk 0:01:00.8]} 56... Qd3+ {[%clk 0:00:20.9]} 57. Qd5 {[%clk 0:01:01]} 57...
Qa6+ {[%clk 0:00:21]} 58. Qc6 {[%clk 0:00:59.9]} 58... Qa3 {[%clk 0:00:22.1]}
59. Kc7+ {[%clk 0:00:53.7]} 59... Kxg5 {[%clk 0:00:22.3]} 60. b5 {[%clk
0:00:55]} 60... Qa7+ {[%clk 0:00:21.9]} 61. Kd6 {[%clk 0:00:54.6]} 61... Qa3+
{[%clk 0:00:21.9]} 62. Qc5+ {[%clk 0:00:55.4]} 1-0

[Event "*** Titled Tuesday Blitz AM"]
[Site "Chess.com"]
[Date "2020.01.07"]
[Round "2"]
[White "Me_ch_an"]
[Black "manitodeplomo"]
[Result "0-1"]
[WhiteElo "2357"]
[BlackElo "2677"]
[TimeControl "180+2"]
[EndTime "9:24:04 PST"]
[Termination "manitodeplomo won by resignation"]

1. e4 {[%clk 0:03:01.9]} 1... c5 {[%clk 0:02:57.3]} 2. Nc3 {[%clk 0:03:02.1]}
2... Nc6 {[%clk 0:02:56.2]} 3. g3 {[%clk 0:03:03.3]} 3... g6 {[%clk 0:02:57.7]}
4. d3 {[%clk 0:03:03.3]} 4... Bg7 {[%clk 0:02:59.6]} 5. Be3 {[%clk 0:03:04.2]}
5... Nd4 {[%clk 0:02:48.2]} 6. Qd2 {[%clk 0:03:04.7]} 6... Rb8 {[%clk
0:02:42.3]} 7. Bg2 {[%clk 0:03:05.4]} 7... b5 {[%clk 0:02:43.1]} 8. Nd1 {[%clk
0:03:02.1]} 8... b4 {[%clk 0:02:43.5]} 9. c3 {[%clk 0:03:03.1]} 9... bxc3 {[%clk
0:02:45.4]} 10. bxc3 {[%clk 0:03:04.3]} 10... Ne6 {[%clk 0:02:44.2]} 11. Ne2
{[%clk 0:03:02.4]} 11... Ba6 {[%clk 0:02:41.1]} 12. O-O {[%clk 0:02:55.3]} 12...
Qa5 {[%clk 0:02:40.8]} 13. f4 {[%clk 0:02:47.7]} 13... d6 {[%clk 0:02:26]} 14.
f5 {[%clk 0:02:42.6]} 14... Nc7 {[%clk 0:02:26.2]} 15. Rf2 {[%clk 0:02:11.5]}
15... Nf6 {[%clk 0:02:19.7]} 16. h3 {[%clk 0:02:12.4]} 16... O-O {[%clk
0:02:20.1]} 17. g4 {[%clk 0:02:08.3]} 17... Nd7 {[%clk 0:02:17]} 18. Rc1 {[%clk
0:01:56.3]} 18... Ne5 {[%clk 0:02:16.2]} 19. Nb2 {[%clk 0:01:42.9]} 19... Bxd3
{[%clk 0:02:12]} 20. Nxd3 {[%clk 0:01:38.1]} 20... Nc4 {[%clk 0:02:12.4]} 21.
Qe1 {[%clk 0:01:39.2]} 21... Nxe3 {[%clk 0:02:12.4]} 22. Nef4 {[%clk 0:01:35]}
22... Nxg2 {[%clk 0:02:06.4]} 23. Kxg2 {[%clk 0:01:33.7]} 23... e6 {[%clk
0:01:48]} 24. e5 {[%clk 0:01:15]} 24... c4 {[%clk 0:01:25.4]} 25. f6 {[%clk
0:00:55.8]} 25... Bh6 {[%clk 0:01:19.2]} 26. Nb4 {[%clk 0:00:47.9]} 26... dxe5
{[%clk 0:01:16.4]} 27. Nc6 {[%clk 0:00:40.6]} 27... Qc5 {[%clk 0:01:07.9]} 28.
Nxe5 {[%clk 0:00:33.9]} 28... Rfd8 {[%clk 0:01:00.3]} 29. Rcc2 {[%clk
0:00:29.4]} 29... Nd5 {[%clk 0:00:53.2]} 30. Nxf7 {[%clk 0:00:24.7]} 30... Nxf4+
{[%clk 0:00:49.2]} 31. Rxf4 {[%clk 0:00:25.3]} 31... Qd5+ {[%clk 0:00:49.1]} 32.
Rf3 {[%clk 0:00:25.2]} 32... Kxf7 {[%clk 0:00:49.3]} 33. Re2 {[%clk 0:00:25.5]}
33... Rd6 {[%clk 0:00:46.3]} 34. Qf2 {[%clk 0:00:20.9]} 34... Bf4 {[%clk
0:00:21.2]} 35. Qxa7+ {[%clk 0:00:20.4]} 35... Rb7 {[%clk 0:00:22.1]} 36. Qf2
{[%clk 0:00:20.5]} 36... g5 {[%clk 0:00:22.7]} 37. h4 {[%clk 0:00:20.7]} 37...
h6 {[%clk 0:00:22.1]} 38. h5 {[%clk 0:00:21.8]} 38... e5 {[%clk 0:00:21.8]} 39.
Kh3 {[%clk 0:00:06]} 39... Kxf6 {[%clk 0:00:22.3]} 40. Qf1 {[%clk 0:00:05.6]}
40... Rdb6 {[%clk 0:00:21.7]} 41. Rff2 {[%clk 0:00:05.7]} 41... Rb1 {[%clk
0:00:19.3]} 42. Qg2 {[%clk 0:00:04.9]} 42... Qxg2+ {[%clk 0:00:18.9]} 43. Kxg2
{[%clk 0:00:05.5]} 43... Rc1 {[%clk 0:00:18.7]} 44. Rf3 {[%clk 0:00:06]} 44...
Rd7 {[%clk 0:00:18.6]} 45. Re4 {[%clk 0:00:07]} 45... Rd2+ {[%clk 0:00:18.3]}
46. Rf2 {[%clk 0:00:08.3]} 46... Rxf2+ {[%clk 0:00:18.7]} 47. Kxf2 {[%clk
0:00:10.2]} 47... Rxc3 {[%clk 0:00:20]} 48. Ke2 {[%clk 0:00:11]} 48... Ke6
{[%clk 0:00:20.5]} 49. Kd1 {[%clk 0:00:11]} 49... Kd5 {[%clk 0:00:21.1]} 50. Re2
{[%clk 0:00:12.7]} 50... e4 {[%clk 0:00:21.2]} 0-1